fUSD/lending_fUSD_20250506
["ID","MTS","AMOUNT","RATE_DAILY","PERIOD"]
[360034749,1746499844653,-500.0,0.00019985,2]
[360034750,1746499844662,-163.7079889,0.00019985,2]
[360034751,1746499844780,-336.2920111,0.00019985,2]
[360034752,1746499844791,-500.0,0.00019985,2]
[360034753,1746499844801,-500.0,0.00019985,2]
[360034754,1746499844810,-500.0,0.00019985,2]
[360034755,1746499844819,-500.0,0.00019985,2]
[360034756,1746499844829,-500.0,0.00019985,2]
[360034757,1746499844838,-478.46610258,0.00019998,2]
[360034758,1746499844847,-12455.88538775,0.0002,2]
[360034760,1746499846066,-1164.3670397,0.0002,2]
[360034761,1746499846078,-2722.22225273,0.0002,2]
[360034762,1746499846156,-1096.00253824,0.0002,2]
[360034763,1746499846166,-3630.25958235,0.0002,2]
[360034768,1746499939728,500.0,0.00029589,30]
[360034769,1746499939950,500.0,0.00029863,35]
[360034771,1746499957876,-150.0,0.00019918,7]
[360034772,1746499957904,-164.71030466,0.0002,7]
[360034773,1746499957928,-15900.15982521,0.0002,14]
[360034776,1746499980823,500.0,0.00029589,30]
[360034777,1746499981051,500.0,0.00029863,30]
[360034778,1746500065737,169.58,0.00019099,2]
[360034779,1746500065981,169.58,0.0001913,2]
[360034780,1746500066217,169.58,0.00019162,2]
[360034781,1746500066434,169.58,0.00019194,2]
[360034783,1746500087937,254.13696506,0.00017181,2]
[360034784,1746500087959,363.13303494,0.00017181,2]
[360034785,1746500088336,617.27,0.00019445,2]
[360034786,1746500117884,535.89,0.00019079,2]
[360034791,1746500156296,198.0,0.000195,2]
[360034796,1746500189182,198.0,0.000195,2]
[360034806,1746500357595,200.0,0.00019052,2]
[360034826,1746500602375,546.04687819,0.00029589,30]
[360034827,1746500657242,250.0,0.00017,2]
[360034828,1746500658322,300.0,0.00019,2]
[360034829,1746500670742,493.66,0.0001898,2]
[360034837,1746500758801,844.04696506,0.00018995,2]
[360034838,1746500758825,155.95303494,0.00018995,2]
[360034839,1746500760940,302.0,0.00030137,120]
[360034840,1746500807697,698.04,0.0001901,2]
[360034845,1746500855532,3146.00696506,0.00019035,2]
[360034846,1746500855554,4000.0,0.00019035,2]
[360034847,1746500855575,4000.0,0.00019035,2]
[360034848,1746500855596,4000.0,0.00019035,2]
[360034849,1746500855617,4000.0,0.00019035,2]
[360034850,1746500855638,2743.73303494,0.00019035,2]
[360034866,1746501031909,-167.63346818,0.00019799,2]
[360034867,1746501031922,-250.0,0.00019799,2]
[360034868,1746501031931,-200.0,0.000198,2]
[360034869,1746501031942,-207.4,0.00019887,2]
[360034870,1746501031952,-167.63346817,0.0001989,2]
[360034871,1746501031962,-1200.0,0.00019898,2]
[360034872,1746501031972,-787.10273846,0.00019899,2]
[360034873,1746501031982,-300.0,0.00019899,2]
[360034874,1746501031991,-787.1027384,0.00019899,2]
[360034875,1746501032001,-787.1027384,0.00019899,2]
[360034876,1746501032010,-787.1027384,0.00019899,2]
[360034877,1746501032019,-787.1027384,0.00019899,2]
[360034878,1746501032029,-787.1027384,0.000199,2]
[360034879,1746501032038,-787.1027384,0.000199,2]
[360034880,1746501032047,-892.7395962,0.000199,2]
[360034881,1746501032057,-787.1027384,0.000199,2]
[360034882,1746501032066,-787.1027384,0.000199,2]
[360034883,1746501032075,-255.7687994,0.000199,2]
[360034884,1746501032085,-198.0,0.000199,2]
[360034885,1746501032094,-7740.76387152,0.000199,2]
[360034886,1746501032105,-919.3999996,0.000199,2]
[360034887,1746501032116,-400.0,0.000199,2]
[360034888,1746501032126,-528.30000001,0.000199,2]
[360034889,1746501032314,-500.30939221,0.000199,2]
[360034890,1746501032324,-2453.06653306,0.000199,2]
[360034900,1746501037912,-929.21815406,0.000199,2]
[360034901,1746501037922,-39.26610975,0.000199,2]
[360034930,1746501040156,-3815.15597384,0.000199,2]
[360034931,1746501040166,-1545.34910384,0.000199,2]
[360034932,1746501040176,-172.67554819,0.000199,2]
[360034933,1746501040185,-787.1027384,0.000199,2]
[360034934,1746501040194,-4548.30443127,0.000199,2]
[360034935,1746501040203,-5933.0,0.00019904,2]
[360034936,1746501040212,-200.0,0.00019918,2]
[360034937,1746501040221,-500.0,0.00019973,2]
[360034938,1746501040231,-1416.5865327,0.00019986,2]
[360034939,1746501040240,-460.1103244,0.00019986,2]
[360034940,1746501040249,-9506.4783498,0.00019986,2]
[360034941,1746501040258,-196.2,0.0001999,2]
[360034942,1746501040267,-500.0,0.00019998,2]
[360034943,1746501040276,-613.55270416,0.00019998,2]
[360034944,1746501040284,-500.0,0.00019998,2]
[360034945,1746501040294,-500.0,0.00019998,2]
[360034946,1746501040302,-500.0,0.00019998,2]
[360034947,1746501040311,-500.0,0.00019998,2]
[360034948,1746501040320,-500.0,0.00019998,2]
[360034949,1746501040329,-500.0,0.00019998,2]
[360034950,1746501040338,-500.0,0.00019998,2]
[360034951,1746501040347,-500.0,0.00019998,2]
[360034952,1746501040355,-500.0,0.00019998,2]
[360034953,1746501040364,-500.0,0.00019998,2]
[360034954,1746501040373,-500.0,0.00019998,2]
[360034955,1746501040382,-500.0,0.00019998,2]
[360034956,1746501040391,-237.8713357,0.00019998,2]
[360034957,1746501040400,-500.0,0.00019998,2]
[360034958,1746501040409,-500.0,0.00019998,2]
[360034959,1746501040418,-500.0,0.00019998,2]
[360034960,1746501040428,-500.0,0.00019998,2]
[360034961,1746501040437,-500.0,0.00019998,2]
[360034962,1746501040446,-500.0,0.00019998,2]
[360034963,1746501040455,-500.0,0.00019998,2]
[360034964,1746501040464,-500.0,0.00019998,2]
[360034965,1746501040473,-500.0,0.00019998,2]
[360034966,1746501040482,-500.0,0.00019998,2]
[360034967,1746501040492,-500.0,0.00019998,2]
[360034968,1746501040501,-500.0,0.00019998,2]
[360034969,1746501040510,-500.0,0.00019998,2]
[360034970,1746501040519,-518.19,0.00019998,2]
[360034971,1746501040528,-217.49955241,0.00019998,2]
[360034972,1746501040537,-580.44,0.00019998,2]
[360034973,1746501040547,-470.0,0.00019998,2]
[360034974,1746501040556,-175.6442106,0.00019998,2]
[360034975,1746501040565,-464.34,0.00019998,2]
[360034976,1746501040574,-450.0,0.00019998,2]
[360034977,1746501040584,-463.16366444,0.00019998,2]
[360034978,1746501040593,-389.19083672,0.00019998,2]
[360034979,1746501040602,-589.89968229,0.00019998,2]
[360034980,1746501040611,-1686.5,0.00019998,2]
[360034981,1746501040621,-450.0,0.00019998,2]
[360034982,1746501040630,-450.0,0.00019998,2]
[360034983,1746501040639,-450.0,0.00019998,2]
[360034984,1746501040649,-522.94713556,0.00019998,2]
[360034985,1746501040658,-446.27742573,0.00019998,2]
[360034986,1746501040667,-450.0,0.00019998,2]
[360034987,1746501040676,-450.0,0.00019998,2]
[360034988,1746501040686,-450.0,0.00019998,2]
[360034989,1746501040695,-450.0,0.00019998,2]
[360034990,1746501040705,-525.35605769,0.00019998,2]
[360034991,1746501040714,-568.14759759,0.00019998,2]
[360034992,1746501040723,-450.0,0.00019998,2]
[360034993,1746501040732,-450.0,0.00019998,2]
[360034994,1746501040742,-450.0,0.00019998,2]
[360034995,1746501040751,-481.7447211,0.00019998,2]
[360034996,1746501040761,-450.0,0.00019998,2]
[360034997,1746501040770,-450.0,0.00019998,2]
[360034998,1746501040779,-450.0,0.00019998,2]
[360034999,1746501040788,-450.0,0.00019998,2]
[360035000,1746501040797,-450.0,0.00019998,2]
[360035001,1746501040805,-450.0,0.00019998,2]
[360035002,1746501040815,-450.0,0.00019998,2]
[360035003,1746501040823,-450.0,0.00019998,2]
[360035004,1746501040833,-3290.66,0.00019998,2]
[360035005,1746501040843,-450.0,0.00019998,2]
[360035006,1746501040852,-381.80816265,0.00019998,2]
[360035007,1746501040862,-210.20511169,0.00019998,2]
[360035008,1746501040871,-450.0,0.00019998,2]
[360035009,1746501040880,-450.0,0.00019998,2]
[360035010,1746501040889,-450.0,0.00019998,2]
[360035011,1746501040898,-450.0,0.00019998,2]
[360035012,1746501040907,-450.0,0.00019998,2]
[360035013,1746501040922,-450.0,0.00019998,2]
[360035014,1746501040931,-159.8172007,0.00019998,2]
[360035015,1746501040940,-450.0,0.00019998,2]
[360035016,1746501040949,-498.3542331,0.00019998,2]
[360035017,1746501040959,-4405.57,0.00019998,2]
[360035018,1746501040970,-450.0,0.00019998,2]
[360035019,1746501040980,-500.0,0.00019999,2]
[360035020,1746501040989,-150.0,0.00019999,2]
[360035021,1746501040999,-40467.34088536,0.00019999,2]
[360035022,1746501041009,-634.873,0.00019999,2]
[360035023,1746501041018,-332.82851744,0.00019999,2]
[360035024,1746501041027,-450.0,0.00019999,2]
[360035025,1746501041036,-580.44,0.00019999,2]
[360035026,1746501041045,-580.44,0.00019999,2]
[360035027,1746501041054,-580.44,0.00019999,2]
[360035028,1746501041064,-580.44,0.00019999,2]
[360035029,1746501041073,-450.0,0.00019999,2]
[360035030,1746501041082,-580.44,0.00019999,2]
[360035031,1746501041091,-580.44,0.00019999,2]
[360035033,1746501041101,-580.44,0.00019999,2]
[360035034,1746501041110,-580.44,0.00019999,2]
[360035035,1746501041119,-580.44,0.00019999,2]
[360035036,1746501041128,-580.44,0.00019999,2]
[360035037,1746501041138,-580.44,0.00019999,2]
[360035038,1746501041147,-580.44,0.00019999,2]
[360035039,1746501041156,-580.44,0.00019999,2]
[360035040,1746501041165,-580.44,0.00019999,2]
[360035041,1746501041174,-580.44,0.00019999,2]
[360035042,1746501041183,-580.44,0.00019999,2]
[360035043,1746501041193,-580.44,0.00019999,2]
[360035044,1746501041202,-580.44,0.00019999,2]
[360035045,1746501041211,-580.44,0.00019999,2]
[360035046,1746501041220,-580.44,0.00019999,2]
[360035047,1746501041229,-580.44,0.00019999,2]
[360035048,1746501041238,-580.44,0.00019999,2]
[360035049,1746501041247,-580.48657597,0.00019999,2]
[360035050,1746501041255,-450.0,0.00019999,2]
[360035051,1746501041265,-450.0,0.00019999,2]
[360035052,1746501041274,-450.0,0.00019999,2]
[360035053,1746501041283,-450.0,0.00019999,2]
[360035054,1746501041292,-450.0,0.00019999,2]
[360035055,1746501041301,-321.84515191,0.00019999,2]
[360035056,1746501041313,-450.0,0.00019999,2]
[360035057,1746501041322,-235.73573237,0.00019999,2]
[360035058,1746501041330,-490.28766509,0.00019999,2]
[360035059,1746501041339,-150.0,0.00019999,2]
[360035060,1746501041348,-476.4026156,0.00019999,2]
[360035061,1746501041357,-1686.5,0.00019999,2]
[360035062,1746501041366,-1686.5,0.00019999,2]
[360035063,1746501041375,-1686.5,0.00019999,2]
[360035064,1746501041384,-1686.5,0.00019999,2]
[360035065,1746501041393,-1686.5,0.00019999,2]
[360035066,1746501041402,-1686.5,0.00019999,2]
[360035067,1746501041411,-1686.5,0.00019999,2]
[360035068,1746501041420,-1686.5,0.00019999,2]
[360035069,1746501041429,-1686.5,0.00019999,2]
[360035070,1746501041438,-1686.5,0.00019999,2]
[360035071,1746501041447,-1686.5,0.00019999,2]
[360035072,1746501041455,-1686.5,0.00019999,2]
[360035073,1746501041465,-1686.5,0.00019999,2]
[360035074,1746501041475,-1686.5,0.00019999,2]
[360035075,1746501041484,-1686.5,0.00019999,2]
[360035076,1746501041493,-1686.5,0.00019999,2]
[360035077,1746501041502,-1686.5,0.00019999,2]
[360035078,1746501041511,-1686.5,0.00019999,2]
[360035079,1746501041521,-1686.5,0.00019999,2]
[360035080,1746501041530,-1686.5,0.00019999,2]
[360035081,1746501041539,-1686.5,0.00019999,2]
[360035082,1746501041549,-1686.5,0.00019999,2]
[360035083,1746501041558,-1686.7,0.00019999,2]
[360035084,1746501041566,-450.0,0.00019999,2]
[360035085,1746501041576,-450.0,0.00019999,2]
[360035086,1746501041585,-450.0,0.00019999,2]
[360035087,1746501041594,-450.0,0.00019999,2]
[360035088,1746501041603,-450.0,0.00019999,2]
[360035089,1746501041613,-450.0,0.00019999,2]
[360035090,1746501041622,-450.0,0.00019999,2]
[360035091,1746501041631,-485.84,0.00019999,2]
[360035092,1746501041640,-450.0,0.00019999,2]
[360035093,1746501041650,-376.76412708,0.00019999,2]
[360035094,1746501041659,-245.90788639,0.00019999,2]
[360035095,1746501041668,-170.93752625,0.00019999,2]
[360035096,1746501041677,-500.0,0.00019999,2]
[360035097,1746501041687,-489.28829418,0.00019999,2]
[360035098,1746501041697,-152.04642897,0.00019999,2]
[360035099,1746501041706,-150.0,0.00019999,2]
[360035100,1746501041715,-500.0,0.00019999,2]
[360035101,1746501041724,-150.0,0.00019999,2]
[360035102,1746501041734,-450.0,0.00019999,2]
[360035103,1746501041743,-450.0,0.00019999,2]
[360035104,1746501041751,-450.0,0.00019999,2]
[360035105,1746501041761,-450.0,0.00019999,2]
[360035106,1746501041771,-177.89661196,0.00019999,2]
[360035107,1746501041781,-450.0,0.00019999,2]
[360035108,1746501041790,-450.0,0.00019999,2]
[360035109,1746501041799,-450.0,0.00019999,2]
[360035110,1746501041808,-450.0,0.00019999,2]
[360035111,1746501041817,-450.0,0.00019999,2]
[360035112,1746501041827,-450.0,0.00019999,2]
[360035113,1746501041836,-450.0,0.00019999,2]
[360035114,1746501041845,-450.0,0.00019999,2]
[360035115,1746501041855,-450.0,0.00019999,2]
[360035116,1746501041864,-450.0,0.00019999,2]
[360035117,1746501041873,-450.0,0.00019999,2]
[360035118,1746501041883,-450.0,0.00019999,2]
[360035119,1746501041892,-166.01937314,0.00019999,2]
[360035120,1746501041902,-500.0,0.00019999,2]
[360035121,1746501041913,-500.0,0.00019999,2]
[360035122,1746501041923,-450.0,0.00019999,2]
[360035123,1746501041933,-450.0,0.00019999,2]
[360035124,1746501041943,-447.51932527,0.00019999,2]
[360035125,1746501041952,-3290.66,0.00019999,2]
[360035126,1746501041962,-3290.66,0.00019999,2]
[360035127,1746501041972,-3290.66,0.00019999,2]
[360035128,1746501041982,-3290.66,0.00019999,2]
[360035129,1746501041991,-3290.66,0.00019999,2]
[360035130,1746501042001,-3290.66,0.00019999,2]
[360035131,1746501042010,-3290.66,0.00019999,2]
[360035132,1746501042019,-3290.66,0.00019999,2]
[360035133,1746501042028,-3290.66,0.00019999,2]
[360035134,1746501042037,-3290.66,0.00019999,2]
[360035135,1746501042047,-3290.66,0.00019999,2]
[360035136,1746501042056,-3290.66,0.00019999,2]
[360035137,1746501042065,-3290.66,0.00019999,2]
[360035138,1746501042075,-3290.66,0.00019999,2]
[360035139,1746501042084,-3290.66,0.00019999,2]
[360035140,1746501042093,-3290.66,0.00019999,2]
[360035141,1746501042103,-3290.66,0.00019999,2]
[360035142,1746501042112,-3290.66,0.00019999,2]
[360035143,1746501042121,-3290.66,0.00019999,2]
[360035144,1746501042130,-3290.66,0.00019999,2]
[360035145,1746501042139,-3290.66,0.00019999,2]
[360035146,1746501042149,-3290.66,0.00019999,2]
[360035147,1746501042158,-3290.8169,0.00019999,2]
[360035148,1746501042167,-434.57839927,0.00019999,2]
[360035149,1746501042176,-450.0,0.00019999,2]
[360035150,1746501042186,-450.0,0.00019999,2]
[360035151,1746501042195,-450.0,0.00019999,2]
[360035152,1746501042204,-450.0,0.00019999,2]
[360035153,1746501042214,-450.0,0.00019999,2]
[360035154,1746501042223,-450.0,0.00019999,2]
[360035155,1746501042232,-450.0,0.00019999,2]
[360035156,1746501042242,-450.0,0.00019999,2]
[360035157,1746501042251,-450.0,0.00019999,2]
[360035158,1746501042260,-450.0,0.00019999,2]
[360035159,1746501042270,-450.0,0.00019999,2]
[360035160,1746501042279,-450.0,0.00019999,2]
[360035161,1746501042288,-450.0,0.00019999,2]
[360035162,1746501042298,-183.23719913,0.00019999,2]
[360035163,1746501042307,-450.0,0.00019999,2]
[360035164,1746501042316,-450.0,0.00019999,2]
[360035165,1746501042326,-450.0,0.00019999,2]
[360035166,1746501042335,-450.0,0.00019999,2]
[360035167,1746501042345,-450.0,0.00019999,2]
[360035168,1746501042354,-450.0,0.00019999,2]
[360035169,1746501042365,-450.0,0.00019999,2]
[360035170,1746501042374,-450.0,0.00019999,2]
[360035171,1746501042384,-450.0,0.00019999,2]
[360035172,1746501042393,-450.0,0.00019999,2]
[360035173,1746501042402,-450.0,0.00019999,2]
[360035174,1746501042411,-434.57,0.00019999,2]
[360035175,1746501042421,-450.0,0.00019999,2]
[360035176,1746501042430,-450.0,0.00019999,2]
[360035177,1746501042441,-450.0,0.00019999,2]
[360035178,1746501042451,-450.0,0.00019999,2]
[360035179,1746501042460,-450.0,0.00019999,2]
[360035180,1746501042470,-450.0,0.00019999,2]
[360035181,1746501042479,-490.94,0.00019999,2]
[360035182,1746501042488,-4405.57,0.00019999,2]
[360035183,1746501042497,-4405.57,0.00019999,2]
[360035184,1746501042507,-4405.57,0.00019999,2]
[360035185,1746501042516,-4405.57,0.00019999,2]
[360035186,1746501042526,-4405.57,0.00019999,2]
[360035187,1746501042535,-4405.57,0.00019999,2]
[360035188,1746501042544,-4405.57,0.00019999,2]
[360035189,1746501042554,-4405.57,0.00019999,2]
[360035190,1746501042563,-4405.57,0.00019999,2]
[360035191,1746501042573,-4405.57,0.00019999,2]
[360035192,1746501042582,-4405.57,0.00019999,2]
[360035193,1746501042592,-4405.57,0.00019999,2]
[360035194,1746501042602,-4405.57,0.00019999,2]
[360035195,1746501042611,-4405.57,0.00019999,2]
[360035196,1746501042621,-4405.57,0.00019999,2]
[360035197,1746501042630,-4405.57,0.00019999,2]
[360035200,1746501042776,-4405.57,0.00019999,2]
[360035201,1746501042787,-4405.57,0.00019999,2]
[360035203,1746501042797,-4405.57,0.00019999,2]
[360035204,1746501042807,-4405.57,0.00019999,2]
[360035205,1746501042817,-4405.57,0.00019999,2]
[360035206,1746501042827,-4405.57,0.00019999,2]
[360035207,1746501042836,-4405.72,0.00019999,2]
[360035208,1746501042845,-500.0,0.00019999,2]
[360035209,1746501042855,-241.16865609,0.00019999,2]
[360035210,1746501042865,-891.0,0.0002,2]
[360035212,1746501042874,-187.74475872,0.0002,2]
[360035214,1746501042883,-410956.53143943,0.0002,2]
[360035217,1746501042899,-945.66,0.0002,2]
[360035253,1746501240474,953.0,0.0003,30]
[360035261,1746501304718,1242.54,0.00019,2]
[360035263,1746501306371,13.72696506,0.00019,2]
[360035264,1746501306393,1228.81303494,0.00019,2]
[360035268,1746501319072,731.2,0.00017128,2]
[360035269,1746501319268,731.2,0.00019392,2]
[360035270,1746501324310,500.0,0.0003,30]
[360035274,1746501340271,502.0,0.0003,30]
[360035279,1746501351069,9601.38287442,0.00030137,120]
[360035288,1746501383214,157.22,0.00019049,3]
[360035303,1746501465296,275.5,0.00018988,2]
[360035313,1746501622319,4000.0,0.00030137,120]
[360035321,1746501681733,876.06696506,0.00018949,2]
[360035322,1746501681756,605.13303494,0.00018949,2]
[360035337,1746501755451,207.52,0.00018951,2]
[360035339,1746501758266,500.0,0.00029589,30]
[360035340,1746501758508,500.0,0.00029863,35]
[360035346,1746501787496,1000.0,0.00018976,2]
[360035348,1746501850237,246.83,0.00018933,2]
[360035349,1746501906848,-152.70933397,0.00019552,2]
[360035350,1746501917923,153.24993506,0.00018,2]
[360035355,1746501949438,1787.26703,0.00018933,2]
[360035356,1746501949460,4000.0,0.00018933,2]
[360035357,1746501949482,4000.0,0.00018933,2]
[360035358,1746501949504,2000.0,0.00018933,2]
[360035359,1746501949530,12112.73297,0.00018933,2]
[360035362,1746502023836,200.0,0.00019,2]
[360035364,1746502071872,2139.0,0.000195,2]
[360035374,1746502172614,-152.0,0.00019515,2]
[360035377,1746502180110,-13.66,0.00019515,2]
[360035387,1746502232207,-250.0,0.00019674,2]
[360035388,1746502232217,-191.45630862,0.00019698,2]
[360035389,1746502232228,-397.67524088,0.000197,2]
[360035390,1746502232239,-35.04395698,0.000197,2]
[360035391,1746502232248,-200.0,0.000197,2]
[360035392,1746502232257,-1599.22356625,0.0001975,2]
[360035393,1746502232267,-1200.0,0.00019797,2]
[360035394,1746502232276,-300.0,0.00019797,2]
[360035395,1746502232285,-300.0,0.00019798,2]
[360035396,1746502232295,-4967.29099015,0.00019799,2]
[360035397,1746502232306,-7719.29338366,0.00019799,2]
[360035398,1746502232343,-583.344,0.00019799,2]
[360035399,1746502232355,-42492.14225006,0.00019799,2]
[360035400,1746502232364,-255.99872908,0.000198,2]
[360035401,1746502232373,-820.50355067,0.000198,2]
[360035402,1746502232383,-820.50355063,0.00019811,2]
[360035403,1746502232392,-820.50355063,0.00019822,2]
[360035404,1746502232401,-820.50355063,0.00019833,2]
[360035405,1746502232410,-2066.02237352,0.00019843,2]
[360035406,1746502232419,-820.50355063,0.00019844,2]
[360035407,1746502232428,-820.50355063,0.00019856,2]
[360035408,1746502232438,-459.83112873,0.00019873,2]
[360035409,1746502232448,-596.9165218,0.00019873,2]
[360035410,1746502232459,-500.0,0.00019873,2]
[360035411,1746502232468,-504.04939422,0.00019873,2]
[360035412,1746502232478,-285.27986528,0.00019873,2]
[360035413,1746502232487,-500.0,0.00019873,2]
[360035414,1746502232496,-500.0,0.00019873,2]
[360035415,1746502232506,-500.0,0.00019873,2]
[360035416,1746502232516,-207.4,0.00019887,2]
[360035417,1746502232525,-151.0,0.00019888,2]
[360035418,1746502232535,-355.9624264,0.00019894,2]
[360035419,1746502232544,-500.0,0.00019894,2]
[360035420,1746502232554,-500.0,0.00019894,2]
[360035421,1746502232564,-500.0,0.00019894,2]
[360035422,1746502232573,-500.0,0.00019894,2]
[360035423,1746502232583,-500.0,0.00019894,2]
[360035425,1746502232593,-500.0,0.00019894,2]
[360035427,1746502232602,-500.0,0.00019894,2]
[360035429,1746502232612,-500.0,0.00019894,2]
[360035431,1746502232624,-500.0,0.00019894,2]
[360035433,1746502232633,-500.0,0.00019894,2]
[360035435,1746502232643,-500.0,0.00019894,2]
[360035437,1746502232652,-500.0,0.00019894,2]
[360035439,1746502232663,-500.0,0.00019894,2]
[360035441,1746502232672,-500.0,0.00019894,2]
[360035443,1746502232681,-500.0,0.00019894,2]
[360035445,1746502232691,-500.0,0.00019894,2]
[360035447,1746502232702,-500.0,0.00019894,2]
[360035449,1746502232712,-500.0,0.00019896,2]
[360035451,1746502232721,-150.0,0.00019896,2]
[360035453,1746502232730,-200.0,0.00019899,2]
[360035455,1746502232740,-321.82257776,0.00019899,2]
[360035457,1746502232750,-3721.33,0.00019899,2]
[360035458,1746502232760,-450.0,0.00019899,2]
[360035460,1746502232770,-522.94713556,0.00019899,2]
[360035462,1746502232779,-450.0,0.00019899,2]
[360035464,1746502232788,-450.0,0.00019899,2]
[360035465,1746502232798,-450.0,0.00019899,2]
[360035466,1746502232807,-450.0,0.00019899,2]
[360035467,1746502232817,-450.0,0.00019899,2]
[360035468,1746502232826,-450.0,0.00019899,2]
[360035469,1746502232835,-450.0,0.00019899,2]
[360035470,1746502232845,-450.0,0.00019899,2]
[360035471,1746502232854,-450.0,0.00019899,2]
[360035472,1746502232864,-450.0,0.00019899,2]
[360035473,1746502232874,-305.01662437,0.00019899,2]
[360035474,1746502232883,-568.50303606,0.00019899,2]
[360035475,1746502232893,-450.0,0.00019899,2]
[360035476,1746502232902,-450.0,0.00019899,2]
[360035477,1746502232911,-450.0,0.00019899,2]
[360035478,1746502232921,-450.0,0.00019899,2]
[360035479,1746502232931,-450.0,0.00019899,2]
[360035480,1746502232940,-450.0,0.00019899,2]
[360035481,1746502232949,-450.0,0.00019899,2]
[360035482,1746502232958,-450.0,0.00019899,2]
[360035483,1746502232968,-372.81993184,0.00019899,2]
[360035484,1746502232977,-450.0,0.00019899,2]
[360035485,1746502232987,-450.0,0.00019899,2]
[360035486,1746502232996,-450.0,0.00019899,2]
[360035487,1746502233005,-450.0,0.00019899,2]
[360035488,1746502233015,-450.0,0.00019899,2]
[360035489,1746502233024,-450.0,0.00019899,2]
[360035490,1746502233034,-450.0,0.00019899,2]
[360035491,1746502233046,-450.0,0.00019899,2]
[360035492,1746502233055,-9049.32,0.00019899,2]
[360035493,1746502233065,-450.0,0.00019899,2]
[360035494,1746502233075,-450.0,0.00019899,2]
[360035495,1746502233085,-450.0,0.00019899,2]
[360035496,1746502233095,-6068.61,0.00019899,2]
[360035497,1746502233105,-450.0,0.00019899,2]
[360035498,1746502233114,-450.0,0.00019899,2]
[360035499,1746502233123,-450.0,0.00019899,2]
[360035500,1746502233133,-798.78,0.00019899,2]
[360035501,1746502233142,-450.0,0.00019899,2]
[360035502,1746502233152,-450.0,0.00019899,2]
[360035503,1746502233161,-218.62457192,0.00019899,2]
[360035504,1746502233171,-450.0,0.00019899,2]
[360035505,1746502233181,-450.0,0.00019899,2]
[360035506,1746502233191,-200.0,0.00019899,2]
[360035507,1746502233201,-171120.82999473,0.000199,2]
[360035508,1746502233214,-455.5222623,0.000199,2]
[360035509,1746502233240,-500.0,0.00019894,2]
[360035510,1746502233250,-500.0,0.00019894,2]
[360035511,1746502233260,-3703.53234297,0.000199,2]
[360035512,1746502233269,-242.9803594,0.000199,2]
[360035513,1746502233279,-500.0,0.00019923,2]
[360035514,1746502233288,-500.0,0.00019951,2]
[360035515,1746502233297,-200.0,0.00019954,2]
[360035516,1746502233306,-500.0,0.00019973,2]
[360035517,1746502233316,-500.0,0.00019973,2]
[360035518,1746502233326,-500.0,0.00019973,2]
[360035519,1746502233335,-500.0,0.00019973,2]
[360035520,1746502233344,-317.65310063,0.00019973,2]
[360035521,1746502233356,-182.91820491,0.00019973,2]
[360035522,1746502233365,-248.40319232,0.00019973,2]
[360035523,1746502233383,-500.0,0.00019894,2]